{"text_format":"1","workbook":"xlsx","n_sheets":10,"sheets":["BBO en BSW5.PF3 Contact","BSW0.Dossierrug","BSW0.PF1en2","BSW1.Kwaliteitsplan","BSW9 Planning","BSW6.PF9 Noodplan","BSW14 PV CT","BSW14 PV IS","BSW II.9 Veiligheid","histlog"],"not_rendered":{"charts":0,"images":10,"macros":1,"external_links":0,"defined_names":27,"comments":0,"pivot_tables":0},"unopened":[],"bounds":{"document_bytes":16777216,"sheet_cells":100000,"rows_first":2000,"rows_last":500,"rows_between":2000,"halvings":0,"cell_chars":16384,"cell_head_chars":4096},"cells_cut":0,"cells_raw":0,"read":"whole","date_system":"1900"}

{"sheet":"BBO en BSW5.PF3 Contact","index":0,"n_rows":94,"n_cols":34,"rows_kept":94,"cut":false,"hidden":false,"merged":[[2,12,2,20],[70,1,70,9],[67,1,67,9],[2,23,2,31],[4,23,4,31],[17,23,17,31],[28,23,28,31],[28,12,28,20],[67,23,67,31],[67,12,67,20],[2,1,2,9],[57,1,57,9],[4,1,4,9],[38,1,38,9],[47,1,47,9],[17,1,17,9],[68,1,68,9],[68,12,68,20],[68,23,68,31],[28,1,28,9],[4,12,4,20],[17,12,17,20],[57,23,57,31],[47,23,47,31],[38,23,38,31],[38,12,38,20],[47,12,47,20],[57,12,57,20]]}
["Selected","Dossiernr",null,"Straat + huisnr",null,"Fase ","BBO ",null,null,null,null,"Selected",{"$f":"+IF(B1<>\"\",B1,\"\")","v":"Dossiernr"},"","Straat + huisnr","","Fase ","BSP",null,null,null,null,"Selected",{"$f":"+IF(M1<>\"\",M1,\"\")","v":"Dossiernr"},"","Straat + huisnr","","Fase ","BSW",null,null,null,{"$f":"+ROW(Endrow)","v":67},"selected"]
[1,"Stationnaam",null,"Postcode - gemeente",null,null,null,null,null,null,null,1,"Stationnaam","","Postcode - gemeente","","",null,null,null,null,null,1,"Stationnaam","","Postcode - gemeente","",""]
[1,{"$f":"CONCATENATE(\"Achilles Projectfiche 3 : CONTACTFICHE- DOSSIERNR \",C1)","v":"Achilles Projectfiche 3 : CONTACTFICHE- DOSSIERNR "},null,null,null,null,null,null,null,null,null,1,"Achilles Projectfiche 3 : CONTACTFICHE- DOSSIERNR ","","","","",{"$f":"+IF(G3<>\"\",G3,\"\")","v":""},"","","",null,1,"Achilles Projectfiche 3 : CONTACTFICHE- DOSSIERNR ","","","","",{"$f":"+IF(R3<>\"\",R3,\"\")","v":""},"","",""]
[1,"Activiteit","Tussenkomende partij","Contactpersoon","Straat + huisnr","Postcode-Gemeente","GSM","Telefoon","Fax (facultatief)","e-mail",null,1,"Activiteit","Tussenkomende partij","Contactpersoon","Straat + huisnr","Postcode-Gemeente","GSM","Telefoon","Fax (facultatief)","e-mail",null,1,{"$f":"+IF(M4<>\"\",M4,\"\")","v":"Activiteit"},"Tussenkomende partij","Contactpersoon","Straat + huisnr","Postcode-Gemeente","GSM","Telefoon","Fax (facultatief)","e-mail"]
["Selected","Intervenanten",null,null,null,null,null,null,null,null,null,"Selected","Intervenanten","","","","","","","","",null,"Selected","Intervenanten","","","","","","","",""]
[1,"Opdrachtgever - PL","BOFAS vzw",null,"Av. Jules Bordetlaan 166 b1","1140 Evere",{"$f":"VLOOKUP(D$6,$D$84:$J$96,4,FALSE)","v":{"$error":"#N/A"}},{"$f":"VLOOKUP(D$6,$D$84:$J$96,5,FALSE)","v":{"$error":"#N/A"}},"02 788 29 99",{"$f":"VLOOKUP(D$6,$D$84:$J$96,7,FALSE)","v":{"$error":"#N/A"}},null,1,{"$f":"+IF(B6<>\"\",B6,\"\")","v":"Opdrachtgever - PL"},{"$f":"+IF(C6<>\"\",C6,\"\")","v":"BOFAS vzw"},{"$f":"+IF(D6<>\"\",D6,\"\")","v":""},"Av. Jules Bordetlaan 166 b1","1140 Evere",{"$f":"VLOOKUP(O$6,$D$84:$J$96,4,FALSE)","v":{"$error":"#N/A"}},{"$f":"VLOOKUP(O$6,$D$84:$J$96,5,FALSE)","v":{"$error":"#N/A"}},"02 788 29 99",{"$f":"VLOOKUP(O$6,$D$84:$J$96,7,FALSE)","v":{"$error":"#N/A"}},null,1,{"$f":"+IF(M6<>\"\",M6,\"\")","v":"Opdrachtgever - PL"},{"$f":"+IF(N6<>\"\",N6,\"\")","v":"BOFAS vzw"},{"$f":"+IF(O6<>\"\",O6,\"\")","v":""},"Av. Jules Bordetlaan 166 b1","1140 Evere",{"$f":"VLOOKUP(Z$6,$D$84:$J$96,4,FALSE)","v":{"$error":"#N/A"}},{"$f":"VLOOKUP(Z$6,$D$84:$J$96,5,FALSE)","v":{"$error":"#N/A"}},"02 788 29 99",{"$f":"VLOOKUP(Z$6,$D$84:$J$96,7,FALSE)","v":{"$error":"#N/A"}}]
[1,"Opdrachtgever - TD",{"$f":"+IF(C6<>\"\",C6,\"\")","v":"BOFAS vzw"},"Erik Goolaerts",{"$f":"+IF(E6<>\"\",E6,\"\")","v":"Av. Jules Bordetlaan 166 b1"},{"$f":"+IF(F6<>\"\",F6,\"\")","v":"1140 Evere"},"0497 44 73 50","02 788 29 37",{"$f":"+IF(I6<>\"\",I6,\"\")","v":"02 788 29 99"},"erik.goolaerts@bofas.be",null,1,"Opdrachtgever - TD",{"$f":"+IF(N6<>\"\",N6,\"\")","v":"BOFAS vzw"},{"$f":"+IF(D7<>\"\",D7,\"\")","v":"Erik Goolaerts"},{"$f":"+IF(P6<>\"\",P6,\"\")","v":"Av. Jules Bordetlaan 166 b1"},{"$f":"+IF(Q6<>\"\",Q6,\"\")","v":"1140 Evere"},{"$f":"+IF(G7<>\"\",G7,\"\")","v":"0497 44 73 50"},"02 788 29 37",{"$f":"+IF(T6<>\"\",T6,\"\")","v":"02 788 29 99"},{"$f":"+IF(J7<>\"\",J7,\"\")","v":"erik.goolaerts@bofas.be"},null,1,"Opdrachtgever - TD",{"$f":"+IF(Y6<>\"\",Y6,\"\")","v":"BOFAS vzw"},{"$f":"+IF(O7<>\"\",O7,\"\")","v":"Erik Goolaerts"},{"$f":"+IF(AA6<>\"\",AA6,\"\")","v":"Av. Jules Bordetlaan 166 b1"},{"$f":"+IF(AB6<>\"\",AB6,\"\")","v":"1140 Evere"},{"$f":"+IF(R7<>\"\",R7,\"\")","v":"0497 44 73 50"},"02 788 29 37",{"$f":"+IF(AE6<>\"\",AE6,\"\")","v":"02 788 29 99"},{"$f":"+IF(U7<>\"\",U7,\"\")","v":"erik.goolaerts@bofas.be"}]
[1,"Communicatieverantwoordelijke ",{"$f":"+IF(C6<>\"\",C6,\"\")","v":"BOFAS vzw"},"Lieven Van den Bossche",{"$f":"+IF(E6<>\"\",E6,\"\")","v":"Av. Jules Bordetlaan 166 b1"},{"$f":"+IF(F6<>\"\",F6,\"\")","v":"1140 Evere"},"0494 52 82 88","02 788 29 40",{"$f":"+IF(I6<>\"\",I6,\"\")","v":"02 788 29 99"},"lieven.vandenbossche@bofas.be",null,1,"Communicatieverantwoordelijke ",{"$f":"+IF(N6<>\"\",N6,\"\")","v":"BOFAS vzw"},{"$f":"+IF(D8<>\"\",D8,\"\")","v":"Lieven Van den Bossche"},{"$f":"+IF(P6<>\"\",P6,\"\")","v":"Av. Jules Bordetlaan 166 b1"},{"$f":"+IF(Q6<>\"\",Q6,\"\")","v":"1140 Evere"},"0494 52 82 88","02 788 29 40",{"$f":"+IF(T6<>\"\",T6,\"\")","v":"02 788 29 99"},{"$f":"+IF(J8<>\"\",J8,\"\")","v":"lieven.vandenbossche@bofas.be"},null,1,"Communicatieverantwoordelijke ",{"$f":"+IF(Y6<>\"\",Y6,\"\")","v":"BOFAS vzw"},{"$f":"+IF(O8<>\"\",O8,\"\")","v":"Lieven Van den Bossche"},{"$f":"+IF(AA6<>\"\",AA6,\"\")","v":"Av. Jules Bordetlaan 166 b1"},{"$f":"+IF(AB6<>\"\",AB6,\"\")","v":"1140 Evere"},"0494 52 82 88","02 788 29 40",{"$f":"+IF(AE6<>\"\",AE6,\"\")","v":"02 788 29 99"},{"$f":"+IF(U8<>\"\",U8,\"\")","v":"lieven.vandenbossche@bofas.be"}]
[1,"Bodemsaneringsdeskundige - Bouwdirectie (BD) ontwerp - projectcoördinator",null,null,null,null,null,null,null,null,null,1,"Bodemsaneringsdeskundige - Bouwdirectie (BD) ontwerp - projectcoördinator",{"$f":"+IF(C9<>\"\",C9,\"\")","v":""},{"$f":"+IF(D9<>\"\",D9,\"\")","v":""},{"$f":"+IF(E9<>\"\",E9,\"\")","v":""},{"$f":"+IF(F9<>\"\",F9,\"\")","v":""},"","",{"$f":"+IF(I9<>\"\",I9,\"\")","v":""},{"$f":"+IF(J9<>\"\",J9,\"\")","v":""},null,1,"Bodemsaneringsdeskundige - Bouwdirectie (BD) ontwerp - projectcoördinator",{"$f":"+IF(N9<>\"\",N9,\"\")","v":""},{"$f":"+IF(O9<>\"\",O9,\"\")","v":""},{"$f":"+IF(P9<>\"\",P9,\"\")","v":""},{"$f":"+IF(Q9<>\"\",Q9,\"\")","v":""},"","",{"$f":"+IF(T9<>\"\",T9,\"\")","v":""},{"$f":"+IF(U9<>\"\",U9,\"\")","v":""}]
[1,"Bodemsaneringsdeskundige - Bouwdirectie (BD) ontwerp - projectleider",{"$f":"+IF(C9<>\"\",C9,\"\")","v":""},null,{"$f":"+IF(E9<>\"\",E9,\"\")","v":""},{"$f":"+IF(F9<>\"\",F9,\"\")","v":""},null,null,{"$f":"+IF(I9<>\"\",I9,\"\")","v":""},null,null,1,"Bodemsaneringsdeskundige - Bouwdirectie (BD) ontwerp - projectleider",{"$f":"+IF(N9<>\"\",N9,\"\")","v":""},{"$f":"+IF(D10<>\"\",D10,\"\")","v":""},{"$f":"+IF(P9<>\"\",P9,\"\")","v":""},{"$f":"+IF(Q9<>\"\",Q9,\"\")","v":""},"","",{"$f":"+IF(T9<>\"\",T9,\"\")","v":""},{"$f":"+IF(J10<>\"\",J10,\"\")","v":""},null,1,"Bodemsaneringsdeskundige - Bouwdirectie (BD) ontwerp - projectleider",{"$f":"+IF(Y9<>\"\",Y9,\"\")","v":""},{"$f":"+IF(O10<>\"\",O10,\"\")","v":""},{"$f":"+IF(AA9<>\"\",AA9,\"\")","v":""},{"$f":"+IF(AB9<>\"\",AB9,\"\")","v":""},"","",{"$f":"+IF(AE9<>\"\",AE9,\"\")","v":""},{"$f":"+IF(U10<>\"\",U10,\"\")","v":""}]
[null,"Bodemsaneringdeskundige -Bouwdirectie controle van de uitvoering - MB",null,null,null,null,null,null,null,null,null,null,{"$f":"+IF(B11<>\"\",B11,\"\")","v":"Bodemsaneringdeskundige -Bouwdirectie controle van de uitvoering - MB"},null,null,null,null,null,null,null,null,null,1,{"$f":"+IF(M11<>\"\",M11,\"\")","v":"Bodemsaneringdeskundige -Bouwdirectie controle van de uitvoering - MB"},{"$f":"+IF(Y9<>\"\",Y9,\"\")","v":""},null,{"$f":"+IF(AA9<>\"\",AA9,\"\")","v":""},{"$f":"+IF(AB9<>\"\",AB9,\"\")","v":""},null,null,{"$f":"+IF(AE9<>\"\",AE9,\"\")","v":""}]
[null,"BD uitvoering - Hoofdaannemer (HA)",null,null,null,null,null,null,null,null,null,null,"BD uitvoering - Hoofdaannemer (HA)",null,null,null,null,null,null,null,null,null,1,"BD uitvoering - Hoofdaannemer (HA)"]
[null,"Aanspreekpunt HA op de werf",null,null,null,null,null,null,null,null,null,null,"Aanspreekpunt HA op de werf",null,null,null,null,null,null,null,null,null,1,"Aanspreekpunt HA op de werf",{"$f":"+IF(Y12<>\"\",Y12,\"\")","v":""},null,{"$f":"+IF(AA12<>\"\",AA12,\"\")","v":""},{"$f":"+IF(AB12<>\"\",AB12,\"\")","v":""},null,null,{"$f":"+IF(AE12<>\"\",AE12,\"\")","v":""}]
[null,"Veiligheidscoördinator ontwerp VCO",null,null,null,null,null,null,null,null,null,1,"Veiligheidscoördinator ontwerp VCO",null,null,null,null,null,null,null,null,null,null,"Veiligheidscoördinator ontwerp VCO"]
[null,"Veiligheidscoördinator verwezenlijking VCV",null,null,null,null,null,null,null,null,null,null,"Veiligheidscoördinator verwezenlijking VCV",null,null,null,null,null,null,null,null,null,1,"Veiligheidscoördinator verwezenlijking VCV",{"$f":"+IF(Y6<>\"\",Y6,\"\")","v":"BOFAS vzw"},{"$f":"+IF(Z6<>\"\",Z6,\"\")","v":""},{"$f":"+IF(AA6<>\"\",AA6,\"\")","v":"Av. Jules Bordetlaan 166 b1"},{"$f":"+IF(AB6<>\"\",AB6,\"\")","v":"1140 Evere"},{"$error":"#N/A"},{"$error":"#N/A"},{"$f":"+IF(AE6<>\"\",AE6,\"\")","v":"02 788 29 99"},{"$error":"#N/A"}]
[null,"Inspectie-instelling",null,null,null,null,null,null,null,null,null,null,"Inspectie-instelling",null,null,null,null,null,null,null,null,null,1,"Inspectie-instelling"]
[1,null,null,null,null,null,null,null,null,null,null,1,"",null,null,null,null,null,null,null,null,null,1,""]
[1,"Eigenaars/gebruikers/buren",null,null,null,null,null,null,null,null,null,1,"Eigenaars/gebruikers/buren",{"$f":"+IF(C18<>\"\",C18,\"\")","v":""},"","","","","","","",null,1,"Eigenaars/gebruikers/buren",{"$f":"+IF(N18<>\"\",N18,\"\")","v":""},"","","","","","",""]
[1,"Aanvrager",null,null,null,null,null,null,null,null,null,1,{"$f":"+IF(B19<>\"\",B19,\"\")","v":"Aanvrager"},{"$f":"+IF(C19<>\"\",C19,\"\")","v":""},{"$f":"+IF(D19<>\"\",D19,\"\")","v":""},{"$f":"+IF(E19<>\"\",E19,\"\")","v":""},{"$f":"+IF(F19<>\"\",F19,\"\")","v":""},{"$f":"+IF(G19<>\"\",G19,\"\")","v":""},{"$f":"+IF(H19<>\"\",H19,\"\")","v":""},{"$f":"+IF(I19<>\"\",I19,\"\")","v":""},{"$f":"+IF(J19<>\"\",J19,\"\")","v":""},null,1,{"$f":"+IF(M19<>\"\",M19,\"\")","v":"Aanvrager"},{"$f":"+IF(N19<>\"\",N19,\"\")","v":""},{"$f":"+IF(O19<>\"\",O19,\"\")","v":""},{"$f":"+IF(P19<>\"\",P19,\"\")","v":""},{"$f":"+IF(Q19<>\"\",Q19,\"\")","v":""},{"$f":"+IF(R19<>\"\",R19,\"\")","v":""},{"$f":"+IF(S19<>\"\",S19,\"\")","v":""},{"$f":"+IF(T19<>\"\",T19,\"\")","v":""},{"$f":"+IF(U19<>\"\",U19,\"\")","v":""}]
[1,"Eigenaar 1",null,null,null,null,null,null,null,null,null,1,"Eigenaar 1","","","","","","","","",null,1,"Eigenaar 1","","","","","","","",""]
[1,"Eigenaar 2",null,null,null,null,null,null,null,null,null,1,{"$f":"+IF(B21<>\"\",B21,\"\")","v":"Eigenaar 2"},{"$f":"+IF(C21<>\"\",C21,\"\")","v":""},{"$f":"+IF(D21<>\"\",D21,\"\")","v":""},{"$f":"+IF(E21<>\"\",E21,\"\")","v":""},{"$f":"+IF(F21<>\"\",F21,\"\")","v":""},{"$f":"+IF(G21<>\"\",G21,\"\")","v":""},{"$f":"+IF(H21<>\"\",H21,\"\")","v":""},{"$f":"+IF(I21<>\"\",I21,\"\")","v":""},{"$f":"+IF(J21<>\"\",J21,\"\")","v":""},null,1,{"$f":"+IF(M21<>\"\",M21,\"\")","v":"Eigenaar 2"},{"$f":"+IF(N21<>\"\",N21,\"\")","v":""},{"$f":"+IF(O21<>\"\",O21,\"\")","v":""},{"$f":"+IF(P21<>\"\",P21,\"\")","v":""},{"$f":"+IF(Q21<>\"\",Q21,\"\")","v":""},{"$f":"+IF(R21<>\"\",R21,\"\")","v":""},{"$f":"+IF(S21<>\"\",S21,\"\")","v":""},{"$f":"+IF(T21<>\"\",T21,\"\")","v":""},{"$f":"+IF(U21<>\"\",U21,\"\")","v":""}]
[1,"Eigenaar 3",null,null,null,null,null,null,null,null,null,1,"Eigenaar 3","","","","","","","","",null,1,"Eigenaar 3","","","","","","","",""]
[1,"Gebruiker/Exploitant",null,null,{"$f":"E1","v":0},{"$f":"E2","v":0},null,null,null,null,null,1,"Gebruiker/Exploitant","","",{"$f":"+IF(E23<>\"\",E23,\"\")","v":0},0,"","","","",null,1,"Gebruiker/Exploitant","","",0,0,"","","",""]
[1,"Buur 1: perceel:",null,null,null,null,null,null,null,null,null,1,"Buur 1: perceel:","","","","","","","","",null,1,"Buur 1: perceel:","","","","","","","",""]
[1,"Buur 2: perceel:",null,null,null,null,null,null,null,null,null,1,"Buur 2: perceel:","","","","","","","","",null,1,"Buur 2: perceel:","","","","","","","",""]
[1,"Buur 3: perceel:",null,null,null,null,null,null,null,null,null,1,"Buur 3: perceel:","","","","","","","","",null,1,"Buur 3: perceel:","","","","","","","",""]
[1,"Andere: ",null,null,null,null,null,null,null,null,null,1,"Andere: ","","","","","","","","",null,1,"Andere: ","","","","","","","",""]
[1,null,null,null,null,null,null,null,null,null,null,1,"",null,null,null,null,null,null,null,null,null,1,""]
[1,"Openbare diensten",null,null,null,null,null,null,null,null,null,1,"Openbare diensten",{"$f":"+IF(C29<>\"\",C29,\"\")","v":""},"","","","","","","",null,1,"Openbare diensten",{"$f":"+IF(N29<>\"\",N29,\"\")","v":""},"","","","","","",""]
[1,"Controlerende overheid","OVAM",null,"Stationsstraat 110","2800 Mechelen",null,"015 28 42 84","015 20 32 75","info@ovam.be",null,1,{"$f":"+IF(B30<>\"\",B30,\"\")","v":"Controlerende overheid"},{"$f":"+IF(C30<>\"\",C30,\"\")","v":"OVAM"},{"$f":"+IF(D30<>\"\",D30,\"\")","v":""},{"$f":"+IF(E30<>\"\",E30,\"\")","v":"Stationsstraat 110"},{"$f":"+IF(F30<>\"\",F30,\"\")","v":"2800 Mechelen"},{"$f":"+IF(G30<>\"\",G30,\"\")","v":""},{"$f":"+IF(H30<>\"\",H30,\"\")","v":"015 28 42 84"},{"$f":"+IF(I30<>\"\",I30,\"\")","v":"015 20 32 75"},{"$f":"+IF(J30<>\"\",J30,\"\")","v":"info@ovam.be"},null,1,{"$f":"+IF(M30<>\"\",M30,\"\")","v":"Controlerende overheid"},{"$f":"+IF(N30<>\"\",N30,\"\")","v":"OVAM"},{"$f":"+IF(O30<>\"\",O30,\"\")","v":""},{"$f":"+IF(P30<>\"\",P30,\"\")","v":"Stationsstraat 110"},{"$f":"+IF(Q30<>\"\",Q30,\"\")","v":"2800 Mechelen"},{"$f":"+IF(R30<>\"\",R30,\"\")","v":""},{"$f":"+IF(S30<>\"\",S30,\"\")","v":"015 28 42 84"},{"$f":"+IF(T30<>\"\",T30,\"\")","v":"015 20 32 75"},{"$f":"+IF(U30<>\"\",U30,\"\")","v":"info@ovam.be"}]
[null,"Toezicht op de sociale wetten",null,null,null,null,null,null,null,null,null,null,"Toezicht op de sociale wetten",null,null,null,null,null,null,null,null,null,1,"Toezicht op de sociale wetten",null,null,null,null,null,null,null,""]
[null,"Toezicht op het welzijn op het werk",null,null,null,null,null,null,null,null,null,null,"Toezicht op het welzijn op het werk",null,null,null,null,null,null,null,null,null,1,"Toezicht op het welzijn op het werk",null,null,null,null,null,null,null,""]
[null,"Sociale Inspectie",null,null,null,null,null,null,null,null,null,null,"Sociale Inspectie",null,null,null,null,null,null,null,null,null,1,"Sociale Inspectie",null,null,null,null,null,null,null,""]
[null,"NAVB",null,null,null,null,null,null,null,null,null,null,"NAVB",null,null,null,null,null,null,null,null,null,1,"NAVB",null,null,null,null,null,null,null,""]
[1,"Gemeente - technische dienst",null,null,null,null,null,null,null,null,null,1,"Gemeente - technische dienst","","","","","","","","",null,1,"Gemeente - technische dienst","","","","","","","",""]
[1,"Indien gewestweg",null,null,null,null,null,null,null,null,null,1,"Indien gewestweg","","","","","","","","",null,1,"Indien gewestweg","","","","","","","",""]
[1,"Andere: ",null,null,null,null,null,null,null,null,null,1,"Andere: ","","","","","","","","",null,1,"Andere: ","","","","","","","",""]
[1,null,null,null,null,null,null,null,null,null,null,1,"",null,null,null,null,null,null,null,null,null,1,""]
[1,"Nutsleidingen (indien van toepassing: boorwerk/BSW in deze zone)",null,null,null,null,null,null,null,null,null,1,"Nutsleidingen (indien van toepassing: boorwerk/BSW in deze zone)",{"$f":"+IF(C39<>\"\",C39,\"\")","v":""},"","","","","","","",null,1,"Nutsleidingen (indien van toepassing: boorwerk/BSW in deze zone)",{"$f":"+IF(N39<>\"\",N39,\"\")","v":""},"","","","","","",""]
[1,"Electriciteit/gas",null,null,null,null,null,null,null,null,null,1,{"$f":"+IF(B40<>\"\",B40,\"\")","v":"Electriciteit/gas"},{"$f":"+IF(C40<>\"\",C40,\"\")","v":""},"","","","","","","",null,1,{"$f":"+IF(M40<>\"\",M40,\"\")","v":"Electriciteit/gas"},{"$f":"+IF(N40<>\"\",N40,\"\")","v":""},"","","","","","",""]
[1,"Telefonie",null,null,null,null,null,null,null,null,null,1,"Telefonie","","","","","","","","",null,1,"Telefonie","","","","","","","",""]
[1,"Water",null,null,null,null,null,null,null,null,null,1,"Water","","","","","","","","",null,1,"Water","","","","","","","",""]
[1,"Riolering",null,null,null,null,null,null,null,null,null,1,"Riolering",{"$f":"+IF(C43<>\"\",C43,\"\")","v":""},"","","","","","","",null,1,"Riolering",{"$f":"+IF(N43<>\"\",N43,\"\")","v":""},"","","","","","",""]
[1,"Coax kabel (bijv telenet)",null,null,null,null,null,null,null,null,null,1,"Coax kabel (bijv telenet)","","","","","","","","",null,1,"Coax kabel (bijv telenet)","","","","","","","",""]
[1,"Glasvezelkabel",null,null,null,null,null,null,null,null,null,1,"Glasvezelkabel","","","","","","","","",null,1,"Glasvezelkabel","","","","","","","",""]
[1,"Andere: ",null,null,null,null,null,null,null,null,null,1,{"$f":"+IF(B46<>\"\",B46,\"\")","v":"Andere: "},"","","","","","","","",null,1,{"$f":"+IF(M46<>\"\",M46,\"\")","v":"Andere: "},"","","","","","","",""]
[1,null,null,null,null,null,null,null,null,null,null,1,"",null,null,null,null,null,null,null,null,null,1,""]
[1,"Onderaannemers",null,null,null,null,null,null,null,null,null,1,"Onderaannemers",{"$f":"+IF(C48<>\"\",C48,\"\")","v":""},"","","","","","","",null,1,"Onderaannemers",{"$f":"+IF(N48<>\"\",N48,\"\")","v":""},"","","","","","",""]
[1,"Boorfirma (BBO)",null,null,null,null,null,null,null,null,null,null,{"$f":"+IF(B49<>\"\",B49,\"\")","v":"Boorfirma (BBO)"},null,null,null,null,null,null,null,null,null,null,{"$f":"+IF(M49<>\"\",M49,\"\")","v":"Boorfirma (BBO)"}]
[null,"Sonderingen",null,null,null,null,null,null,null,null,null,1,"Sonderingen",null,null,null,null,null,null,null,null,null,null,"Sonderingen"]
[null,"Electriciteit",null,null,null,null,null,null,null,null,null,null,"Electriciteit",null,null,null,null,null,null,null,null,null,1,"Electriciteit"]
[null,"Afbraak-grondwerken",null,null,null,null,null,null,null,null,null,null,"Afbraak-grondwerken",null,null,null,null,null,null,null,null,null,1,"Afbraak-grondwerken"]
[null,"Tankreiniging",null,null,null,null,null,null,null,null,null,null,"Tankreiniging",null,null,null,null,null,null,null,null,null,1,"Tankreiniging"]
[null,"Bemaling",null,null,null,null,null,null,null,null,null,null,"Bemaling",null,null,null,null,null,null,null,null,null,1,"Bemaling"]
[null,"Grondwaterzuivering",null,null,null,null,null,null,null,null,null,null,"Grondwaterzuivering",null,null,null,null,null,null,null,null,null,1,"Grondwaterzuivering"]
[null,"Andere : ",null,null,null,null,null,null,null,null,null,null,"Andere : ",null,null,null,null,null,null,null,null,null,1,"Andere : "]
[1,null,null,null,null,null,null,null,null,null,null,1,"",null,null,null,null,null,null,null,null,null,1,""]
[1,"Onderaannemers (geen werkzaamheden op de site)",null,null,null,null,null,null,null,null,null,1,"Onderaannemers (geen werkzaamheden op de site)",{"$f":"+IF(C58<>\"\",C58,\"\")","v":""},"","","","","","","",null,1,"Onderaannemers (geen werkzaamheden op de site)",{"$f":"+IF(N58<>\"\",N58,\"\")","v":""},"","","","","","",""]
[null,"Landmeetkunde & Expertise",null,null,null,null,null,null,null,null,null,null,{"$f":"+IF(B59<>\"\",B59,\"\")","v":"Landmeetkunde & Expertise"},null,null,null,null,null,null,null,null,null,1,{"$f":"+IF(M59<>\"\",M59,\"\")","v":"Landmeetkunde & Expertise"}]
[null,"Grondreinigingscentrum",null,null,null,null,null,null,null,null,null,null,"Grondreinigingscentrum",null,null,null,null,null,null,null,null,null,1,"Grondreinigingscentrum"]
[null,"Vernietigen tanks",null,null,null,null,null,null,null,null,null,null,"Vernietigen tanks",null,null,null,null,null,null,null,null,null,1,"Vernietigen tanks"]
[null,"Verwerking industrieel afval (spoelwaters)",null,null,null,null,null,null,null,null,null,null,"Verwerking industrieel afval (spoelwaters)",null,null,null,null,null,null,null,null,null,1,"Verwerking industrieel afval (spoelwaters)"]
[null,"Andere : ",null,null,null,null,null,null,null,null,null,null,"Andere : ",null,null,null,null,null,null,null,null,null,1,"Andere : "]
[1,null,null,null,null,null,null,null,null,null,null,1,"",null,null,null,null,null,null,null,null,null,1,""]
[1,"BBO: Deze lijst  wordt verder aangevuld en/of aangepast naargelang bijkomende/andere partijen bij het project betrokken worden.  ",null,null,null,null,null,null,null,null,null,1,"BBO: Deze lijst  wordt verder aangevuld en/of aangepast naargelang bijkomende/andere partijen bij het project betrokken worden.  ",null,null,null,null,null,null,null,null,null,1,"BBO: Deze lijst  wordt verder aangevuld en/of aangepast naargelang bijkomende/andere partijen bij het project betrokken worden.  "]
[1,"BSP/BSW: Deze lijst wordt opgenomen in het coördinatiedagboek waar hij verder aangevuld zal worden naargelang bijkomende partijen bij de verwezenlijking van het bouwwerk betrokken worden. ",null,null,null,null,null,null,null,null,null,1,"BSP/BSW: Deze lijst wordt opgenomen in het coördinatiedagboek waar hij verder aangevuld zal worden naargelang bijkomende partijen bij de verwezenlijking van het bouwwerk betrokken worden. ",null,null,null,null,null,null,null,null,null,1,"BSP/BSW: Deze lijst wordt opgenomen in het coördinatiedagboek waar hij verder aangevuld zal worden naargelang bijkomende partijen bij de verwezenlijking van het bouwwerk betrokken worden. "]
[1,"BSW: Voor meer details mbt verantwoordelijken van de hoofd- en onderaannemers wordt verwezen naar het VGM charter",null,null,null,null,null,null,null,null,null,1,"BSW: Voor meer details mbt verantwoordelijken van de hoofd- en onderaannemers wordt verwezen naar het VGM charter",null,null,null,null,null,null,null,null,null,1,"BSW: Voor meer details mbt verantwoordelijken van de hoofd- en onderaannemers wordt verwezen naar het VGM charter"]
[null,"Privacy Policy: BOFAS verbindt er zich toe de persoonsgegevens die ontvangen worden in het kader van de aanvraag te verwerken in overeenstemming met de toepasselijke wetgeving op het gebied van verwerking van persoonsgegevens en in het bijzonder met de Algemene Verordening Gegevensbescherming (Vo 2016/679), hierna ‘AVG’, en elkaar waar vereist bijstand en ondersteuning te verlenen teneinde hun verplichtingen onder de AVG te kunnen nakomen. Begrippen die niet gedefinieerd zijn in deze bepaling hebben de betekenis die eraan werd gegeven in de AVG. Meer informatie betreffende de Privacy Policy is terug te vinden op www.bofas.be.",null,null,null,null,null,null,null,null,null,null,"Privacy Policy: BOFAS verbindt er zich toe de persoonsgegevens die ontvangen worden in het kader van de aanvraag te verwerken in overeenstemming met de toepasselijke wetgeving op het gebied van verwerking van persoonsgegevens en in het bijzonder met de Algemene Verordening Gegevensbescherming (Vo 2016/679), hierna ‘AVG’, en elkaar waar vereist bijstand en ondersteuning te verlenen teneinde hun verplichtingen onder de AVG te kunnen nakomen. Begrippen die niet gedefinieerd zijn in deze bepaling hebben de betekenis die eraan werd gegeven in de AVG. Meer informatie betreffende de Privacy Policy is terug te vinden op www.bofas.be.",null,null,null,null,null,null,null,null,null,null,"Privacy Policy: BOFAS verbindt er zich toe de persoonsgegevens die ontvangen worden in het kader van de aanvraag te verwerken in overeenstemming met de toepasselijke wetgeving op het gebied van verwerking van persoonsgegevens en in het bijzonder met de Algemene Verordening Gegevensbescherming (Vo 2016/679), hierna ‘AVG’, en elkaar waar vereist bijstand en ondersteuning te verlenen teneinde hun verplichtingen onder de AVG te kunnen nakomen. Begrippen die niet gedefinieerd zijn in deze bepaling hebben de betekenis die eraan werd gegeven in de AVG. Meer informatie betreffende de Privacy Policy is terug te vinden op www.bofas.be."]
[null,"Hoe rijen toevoegen: eerst tabblad \"unprotect\" (geen paswoord), vervolgens op \"view all\" klikken. De betreffende rij kan nu gekopieerd worden en als \"insert copied cells\" toegevoegd worden. Als je niet \"view all\" gebruikt dan zal de gekopieerde rij niet als \"insert copied cells\" toegevoegd kunnen worden en alleen in de aangeklikte fase (BBO, BSP of BSW) zichtbaar zijn!  Kolommen mogen niet verwijderd of toegevoegd worden !",null,null,null,null,null,null,null,null,null,null,{"$f":"+IF(B69<>\"\",B69,\"\")","v":"Hoe rijen toevoegen: eerst tabblad \"unprotect\" (geen paswoord), vervolgens op \"view all\" klikken. De betreffende rij kan nu gekopieerd worden en als \"insert copied cells\" toegevoegd worden. Als je niet \"view all\" gebruikt dan zal de gekopieerde rij niet als \"insert copied cells\" toegevoegd kunnen worden en alleen in de aangeklikte fase (BBO, BSP of BSW) zichtbaar zijn!  Kolommen mogen niet verwijderd of toegevoegd worden !"},null,null,null,null,null,null,null,null,null,null,{"$f":"+IF(M69<>\"\",M69,\"\")","v":"Hoe rijen toevoegen: eerst tabblad \"unprotect\" (geen paswoord), vervolgens op \"view all\" klikken. De betreffende rij kan nu gekopieerd worden en als \"insert copied cells\" toegevoegd worden. Als je niet \"view all\" gebruikt dan zal de gekopieerde rij niet als \"insert copied cells\" toegevoegd kunnen worden en alleen in de aangeklikte fase (BBO, BSP of BSW) zichtbaar zijn!  Kolommen mogen niet verwijderd of toegevoegd worden !"}]
[]
[null,"Contactgevens die niet meer van toepassing zijn  naar hier kopiëren. De oorspronkelijke rij kan dan gewijzigd worden naar de huidige toestand.",null,null,null,null,null,null,null,null,null,null,{"$f":"+IF(B71<>\"\",B71,\"\")","v":"Contactgevens die niet meer van toepassing zijn  naar hier kopiëren. De oorspronkelijke rij kan dan gewijzigd worden naar de huidige toestand."},null,null,null,null,null,null,null,null,null,null,{"$f":"+IF(M71<>\"\",M71,\"\")","v":"Contactgevens die niet meer van toepassing zijn  naar hier kopiëren. De oorspronkelijke rij kan dan gewijzigd worden naar de huidige toestand."}]
[]
["fase","Activiteit","Tussenkomende partij","Contactpersoon","Straat + huisnr","Postcode-Gemeente","GSM","Telefoon","Fax","e-mail",null,"fase",{"$f":"+IF(B73<>\"\",B73,\"\")","v":"Activiteit"},"Tussenkomende partij","Contactpersoon","Straat + huisnr","Postcode-Gemeente","GSM","Telefoon","Fax","e-mail",null,"fase",{"$f":"+IF(M73<>\"\",M73,\"\")","v":"Activiteit"},"Tussenkomende partij","Contactpersoon","Straat + huisnr","Postcode-Gemeente","GSM","Telefoon","Fax","e-mail"]
[]
[]
[]
[]
[]
[]
[]
[]
[]
[]
[null,null,null,"Gert Moerenhout",null,null,"0494 52 82 90","02 788 29 22",null,"gert.moerenhout@bofas.be"]
[null,null,null,"Katrien Achten",null,null,"0494 52 82 95","02 788 29 07",null,"katrien.achten@bofas.be"]
[null,null,null,"Kris Vandijck",null,null,"0494 52 82 92","02 788 29 27",null,"kris.vandijck@bofas.be"]
[null,null,null,"Leen Vandenbussche",null,null,"0491 71 61 95","02 788 29 25",null,"leen.vandenbussche@bofas.be"]
[null,null,null,"Luc Goolaerts",null,null,"0497 34 54 67","02 788 29 35",null,"luc.goolaerts@bofas.be"]
[null,null,null,"Pierre Bourguignon",null,null,"0494 52 82 94","02 788 29 24",null,"pierre.bourguignon@bofas.be"]
[null,null,null,"Sven Van Daele",null,null,"0494 52 82 93","02 788 29 28",null,"sven.vandaele@bofas.be"]
[null,null,null,"Sylvie Posel",null,null,"0494 52 23 90","02 788 29 23",null,"sylvie.posel@bofas.be"]
[null,null,null,"Thomas Laloux",null,null,"0494 52 23 91","02 788 29 38",null,"thomas.laloux@bofas.be"]
[null,null,null,"Yves Van Malderen",null,null,"0496 52 23 49","02 788 29 26",null,"yves.vanmalderen@bofas.be"]
[null,null,null,"Yvon Vermoortel",null,null,"0494 52 23 86","02 788 29 39",null,"yvon.vermoortel@bofas.be"]

{"sheet":"BSW0.Dossierrug","index":1,"n_rows":10,"n_cols":2,"rows_kept":10,"cut":false,"hidden":false,"merged":[[7,0,7,2]]}
[]
[null,"VGM"]
[null,"WERFMAP"]
[]
[]
[null,{"$f":"CONCATENATE(\"Dossier: \",'BBO en BSW5.PF3 Contact'!$Y$1)","v":"Dossier: "}]
[]
[{"$f":"CONCATENATE('BBO en BSW5.PF3 Contact'!$Y$2,\", \",'BBO en BSW5.PF3 Contact'!$AA$1,\" te \",'BBO en BSW5.PF3 Contact'!$AA$2,\" \")","v":",  te  "}]
[]
[null,"Opdrachtgever:"]

{"sheet":"BSW0.PF1en2","index":2,"n_rows":59,"n_cols":8,"rows_kept":59,"cut":false,"hidden":false,"merged":[[55,0,56,0],[55,7,56,7],[30,0,34,0],[31,7,34,7],[39,0,51,0],[39,7,51,7],[52,0,53,0],[52,7,53,7],[14,0,18,0],[14,7,18,7],[22,0,23,0],[22,7,23,7],[25,0,27,0],[25,7,27,7],[8,0,10,0],[8,7,10,7],[0,0,0,7],[1,0,1,7],[2,0,2,7],[5,0,6,0],[5,7,6,7]]}
["KVGM-WERFMAP\n(bruikbaar als Achilles projectfiches 1 & 2 : algemene informatie en werfinformatie)"]
[{"$f":"CONCATENATE(\"OPDRACHTGEVER: \",'BBO en BSW5.PF3 Contact'!$Y$6,\"                 Dossiernr.: \",  'BBO en BSW5.PF3 Contact'!$Y$1)","v":"OPDRACHTGEVER: BOFAS vzw                 Dossiernr.: "}]
[{"$f":"CONCATENATE('BBO en BSW5.PF3 Contact'!$Y$2,\", \",'BBO en BSW5.PF3 Contact'!$AA$1,\" te \",'BBO en BSW5.PF3 Contact'!$AA$2,\" \")","v":",  te  "}]
[]
[null,"ONTWERPDOCUMENTEN","algemeen\nWEBSITE\nwww.bofas.be","aanbesteding\nTENDERSITE\ntenders.bofas.be","startvergadering\nWERFMAP\nvia BOFAS","uitvoering CT&IS\nWERFMAP/e-mail\nophangen/ZS*","document\nconform\nop datum","paraaf \ntoezicht-houder"]
[1,"Kwaliteitsplan","T1240","EBSD","BOF",null,null,"EBSD"]
[null,"Beleidsverklaringen BOFAS en hoofdaannemer","T0030-31",null,"BOF","ophangen"]
[2,"Projectspecifiek bestek, vorderingsstaten, figuren, bijlagen","T5100 & T3320","EBSD","BOF",null,null,"EBSD"]
[3,"OBO, ABO",null,"BOF of EBSD","―",null,"-","EBSD"]
[null,"Bodemsaneringsproject",null,"EBSD","BOF"]
[null,"Conformverklaring BSP en vergunningen, indien niet op de tenderwebsite",null,null,"BOF","ophangen"]
[4,"Attest van reiniging tanks of overeenkomst met de aanvrager",null,"BOF","BOF",null,null,"EBSD"]
[null,"VEILIGHEIDS- EN GEZONDHEIDSPLAN (VGP)"]
[5,"Contactfiche (Achilles projectfiche 3)","T1240","EBSD","BOF","e-mail + ophangen",null,"EBSD"]
[6,"Projectspecifiek veiligheids- en gezondheidsplan","T4420","VC","BOF","VC (werfmap)",null,"VC"]
[null,"Algemeen VGP BSW op voormalige tankstations","T4410",null,"BOF"]
[null,"Werfinrichtings- en signalisatieplan","T5100","VC","―","e-mail + ophangen"]
[null,"Noodplan (Achilles projectfiche 9)","T1240","VC","―","e-mail + ophangen"]
[null,"Werfreglement (indien opgemaakt door hoofdaannemer)",null,null,null,"e-mail + ophangen"]
[7,"Veiligheidsinformatiebladen gevaarlijke stoffen","T5910_xx","VC","BOF","WERFMAP",null,"VC"]
[8,"VGM-charters en risicoanalyses","ter info T5205",null,null,"WERFMAP",null,"VC"]
[null,"COORDINATIEDAGBOEK (COD)"]
[9,"Dagboek der werken, aanwezigheidslijst","T5620",null,"BOF","WERFMAP",null,"EBSD"]
[null,"Planning","T1240","VC","―","e-mail + ophangen"]
[10,"Verslagen werfvergaderingen","T4040-41",null,null,"WERFMAP",null,"EBSD"]
[11,"Keuringsattesten arbeidsmiddelen (ingebruikname, periodiek)",null,null,null,"bij arbeidsmiddel",null,"VC"]
[null,"Verslagen van veiligheidsrondgangen en veiligheidspraatjes","T1240",null,null,"VC (werfmap)"]
[null,"Registratie opmerkingen aannemers + gevolgen, briefwisseling",null,"VC","BOF","VC (e-mail)"]
[12,"Ongevallen- en Incidentenmeldingen","T5285",null,null,"e-mail + WERFMAP",null,"VC"]
[null,"POSTINTERVENTIEDOSSIER (PID)"]
[13,"Projectspecifiek PID","T8200","VC","BOF","VC (werfmap)",null,"VC"]
[null,"As-built-plan",null,null,null,"WERFMAP",null,"EBSD"]
[null,"Attesten en certificaten t.b.v. saneringsverslag",null,null,null,"WERFMAP"]
[null,"Technische fiches, keuringsverslagen van geleverde materialen (andere dan saneringsverslag en GWZI)",null,null,null,"WERFMAP"]
[null,"Verslag van uitgevoerde plaatproeven",null,null,null,"WERFMAP"]
[14,"PV van voorlopige oplevering","T1240",null,"BOF","BOF (werfmap)",null,"BOF"]
[15,"PV van overdracht van de coördinatie-instrumenten VC","T4902",null,"BOF","VC (werfmap)",null,"BOF"]
[null,"UITVOERINGSDOCUMENTEN"]
[16,"Transportbegeleidingsdocumenten",null,null,"BOF","WERFMAP",null,"EBSD"]
[17,"Voorafgaande kennisgeving van de bouwplaats",null,"www.socialsecurity.be",null,"e-mail + ophangen",null,"EBSD"]
[null,"Signalisatievergunning",null,null,null,"e-mail + ophangen"]
[null,"BOFAS-werkvergunningen","T5020-21",null,null,"ophangen/werfmap"]
[null,"Verzekeringsattest",null,null,null,"e-mail"]
[null,"Achilles Projectfiches (fiches 4-8, 10-15)","ter info T5230-68",null,null,"e-mail + ZS"]
[null,"Grondverzetplan en nota stabiliteit",null,null,null,"e-mail + ZS"]
[null,"Bemalingsplan, technische fiches en inspectielijst GWZI",null,null,null,"e-mail + ZS"]
[null,"Hijsplan",null,null,null,"e-mail + ZS"]
[null,"Plannen nutsleidingen",null,null,null,"ZS"]
[null,"Verslagen trainingen en toolboxmeetings",null,null,null,"ZS"]
[null,"Inventaris VGM-preventie- en reddingsmiddelen","ter info T5275",null,null,"ZS"]
[null,"Levenslijst toestellen, register PMGE",null,null,null,"ZS"]
[null,"Rekennota WAK van EBSD",null,null,null,"ZS"]
[18,"Plaatsbeschrijving voor de werken",null,null,null,"e-mail of WERFMAP",null,"EBSD"]
[null,"Plaatsbeschrijving na de werken",null,null,null,"e-mail of WERFMAP"]
[null,"MONITORING EN RAPPORTAGE"]
[19,"Saneringsverslag, TTR of monitoring",null,null,null,"EBSD",null,"BOF"]
[null,"EER en conformverklaring",null,null,null,"EBSD"]
[]
[null,"* ZS : Achilles Veiligheid, gezondheid en milieuzorgsysteem voor on-site bodemsaneringswerken"]

{"sheet":"BSW1.Kwaliteitsplan","index":3,"n_rows":120,"n_cols":16,"rows_kept":120,"cut":false,"hidden":false,"merged":[[19,3,19,5],[26,1,26,5],[37,1,37,5],[34,1,34,5],[71,0,71,4],[69,0,69,4],[69,5,70,5],[63,3,63,4],[36,1,36,5],[40,1,40,5],[42,1,42,5],[43,1,43,5],[44,1,44,5],[45,1,45,5],[38,1,38,5],[41,1,41,5],[32,1,32,5],[35,1,35,5],[53,1,53,5],[56,0,56,4],[46,1,46,5],[49,1,49,5],[48,1,48,5],[60,3,60,4],[1,1,1,5],[6,1,6,5],[7,1,7,5],[4,1,4,5],[3,0,3,5],[31,1,31,5],[14,0,14,5],[16,0,16,2],[16,3,16,5],[17,0,17,2],[17,3,17,5],[8,1,8,5],[27,1,27,5],[28,1,28,5],[21,0,21,5],[18,0,18,2],[18,3,18,5],[10,0,10,5],[25,0,25,5],[15,0,15,5],[12,1,12,5],[29,1,29,5],[30,1,30,5],[19,0,19,2],[90,0,90,5],[70,0,70,4],[88,3,88,5],[89,0,89,2],[83,3,83,5],[84,0,84,2],[88,0,88,2],[84,3,84,5],[77,0,77,2],[77,3,77,5],[78,3,78,5],[87,0,87,2],[89,3,89,5],[72,0,72,4],[0,0,0,5],[73,5,74,5],[71,5,72,5],[59,3,59,4],[58,0,58,5],[109,2,109,5],[110,2,110,5],[108,2,108,5],[95,3,95,4],[5,1,5,5],[11,1,11,5],[22,0,22,5],[23,0,23,5],[50,1,50,5],[51,1,51,5],[52,1,52,5],[64,3,64,4],[107,2,107,5],[107,0,107,1],[91,3,91,4],[92,3,92,4],[93,3,93,4],[94,3,94,4],[54,1,54,5],[61,3,61,4],[62,3,62,4],[65,3,65,4],[113,0,113,5],[82,0,82,2],[82,3,82,5],[83,0,83,2],[76,0,76,5],[79,0,79,2],[80,0,80,2],[81,0,81,2],[79,3,79,5],[80,3,80,5],[81,3,81,5],[78,0,78,2],[87,3,87,5],[86,0,86,2],[86,3,86,5],[85,0,85,2],[85,3,85,5],[101,3,101,4],[111,2,111,5],[103,3,103,4],[105,3,105,4],[106,0,106,5],[115,0,115,2],[119,0,119,5],[96,3,96,4],[97,3,97,4],[98,3,98,4],[99,3,99,4],[100,3,100,4],[116,1,116,5],[115,3,115,5],[114,3,114,5],[114,0,114,2]]}
["KWALITEITSPLAN"]
["Dossiernr BOFAS",{"$f":"+'BBO en BSW5.PF3 Contact'!$Y$1","v":""}]
[]
["IDENTIFICATIE VAN HET BODEMSANERINGSPROJECT"]
[{"$f":"CONCATENATE(\"Dossienummer \",'BBO en BSW5.PF3 Contact'!C30,\":\")","v":"Dossienummer OVAM:"}]
["Titel bodemsaneringsproject:"]
["Datum bodemsaneringsproject:"]
["Referentie van het conformiteitsattest:"]
["Locatie van de bodemsaneringswerken:",{"$f":"CONCATENATE('BBO en BSW5.PF3 Contact'!$AA$1,\" te \",'BBO en BSW5.PF3 Contact'!$AA$2,\" \")","v":" te  "}]
[]
["STARTVERGADERING"]
["Tijdstip (datum en uur) startvergadering","0/01/1900  0:00:00"]
["Locatie startvergadering:",{"$f":"+$B$9","v":" te  "}]
[]
["ACHILLES "]
["volgende certificaten zijn nodig",null,null,null,null,null,null,null,null,null,null,"Keuze"]
["certificaat 1 standaardwerken",{"$f":"+'BBO en BSW5.PF3 Contact'!E1","v":0}]
["certificaat 2 complexe in-situ saneringen",{"$f":"+'BBO en BSW5.PF3 Contact'!#REF!","v":{"$error":"#REF!"}},null,null,null,null,null,null,null,null,null,"Ja"]
["certificaat 3 on-site reinigingstechnieken",{"$f":"CONCATENATE('BBO en BSW5.PF3 Contact'!#REF!,\" te \",'BBO en BSW5.PF3 Contact'!#REF!)","v":{"$error":"#REF!"}},null,null,null,null,null,null,null,null,null,"Nee"]
["certificaat 4 uitzonderlijke of speciale technieken",{"$f":"+'BBO en BSW5.PF3 Contact'!#REF!","v":{"$error":"#REF!"}},null,null,null,null,null,null,null,null,null,"Nvt"]
[]
["OVERZICHT MILIEUKUNDIGE GEGEVENS"]
["Bondige omschrijving van de bodemsaneringswerken"]
[]
[]
["BETROKKENEN (lijst contacten in bijlage)"]
["OPDRACHTGEVER"]
["Naam opdrachtgever:",{"$f":"+'BBO en BSW5.PF3 Contact'!$Y$6","v":"BOFAS vzw"}]
["Naam contactpersoon bij de opdrachtgever:",{"$f":"+'BBO en BSW5.PF3 Contact'!$Z$6","v":""}]
["Adres:",{"$f":"CONCATENATE('BBO en BSW5.PF3 Contact'!$AA$6,\" te \",'BBO en BSW5.PF3 Contact'!$AB$6)","v":"Av. Jules Bordetlaan 166 b1 te 1140 Evere"}]
["Telefoon:",{"$f":"+'BBO en BSW5.PF3 Contact'!$AD$6","v":{"$error":"#N/A"}}]
["GSM:",{"$f":"+'BBO en BSW5.PF3 Contact'!$AC$6","v":{"$error":"#N/A"}}]
["e-mail:",{"$f":"+'BBO en BSW5.PF3 Contact'!$AF$6","v":{"$error":"#N/A"}}]
[]
[{"$f":"+'BBO en BSW5.PF3 Contact'!C30","v":"OVAM"}]
["Naam dossierhouder:",{"$f":"+'BBO en BSW5.PF3 Contact'!$Z$30","v":""}]
["Adres:",{"$f":"CONCATENATE('BBO en BSW5.PF3 Contact'!$AA$30,\" te \",'BBO en BSW5.PF3 Contact'!$AB$30)","v":"Stationsstraat 110 te 2800 Mechelen"}]
["Telefoon:",{"$f":"+'BBO en BSW5.PF3 Contact'!$AD$30","v":"015 28 42 84"}]
["e-mail:",{"$f":"+'BBO en BSW5.PF3 Contact'!$AF$30","v":"info@ovam.be"}]
[]
["BODEMSANERINGSDESKUNDIGE"]
["Naam bodemsaneringsdeskundige:",{"$f":"+'BBO en BSW5.PF3 Contact'!$Y$11","v":""}]
["Naam contactpersoon:",{"$f":"+'BBO en BSW5.PF3 Contact'!$Z$11","v":0}]
["Adres:",{"$f":"CONCATENATE('BBO en BSW5.PF3 Contact'!$AA$11,\" te \",'BBO en BSW5.PF3 Contact'!$AB$11)","v":" te "}]
["Telefoon:",{"$f":"+'BBO en BSW5.PF3 Contact'!$AD$11","v":0}]
["GSM:",{"$f":"+'BBO en BSW5.PF3 Contact'!$AC$11","v":0}]
["e-mail:",{"$f":"+'BBO en BSW5.PF3 Contact'!$AF$11","v":0}]
[]
["BODEMSANEERDER"]
["Naam bodemsaneerder:",{"$f":"+'BBO en BSW5.PF3 Contact'!$Y$12","v":0}]
["Naam contactpersoon:",{"$f":"+'BBO en BSW5.PF3 Contact'!$Z$12","v":0}]
["Adres:",{"$f":"CONCATENATE('BBO en BSW5.PF3 Contact'!$AA$12,\" te \",'BBO en BSW5.PF3 Contact'!$AB$12)","v":" te "}]
["Telefoon:",{"$f":"+'BBO en BSW5.PF3 Contact'!$AD$12","v":0}]
["GSM:",{"$f":"+'BBO en BSW5.PF3 Contact'!$AC$12","v":0}]
["e-mail:",{"$f":"+'BBO en BSW5.PF3 Contact'!$AF$12","v":0}]
["hoofd- / onderaannemer ",null,null,null,null,"Hoofdaannemer",null,null,null,null,null,"Hoofdaannemer"]
["Werkt deze bodemsaneerder volgens het Achilles-zorgsysteem ?",null,null,null,null,null,null,null,null,null,null,"Onderaannemer"]
[]
["SANERINGSCONCEPTEN"]
["concept",null,"uitvoering","startdatum",null,"einddatum",null,null,null,null,null,"saneringsconcepten mogelijk bij BOFAS",null,"uitvoering",null,"mogelijke lijst van verwerkte materialen voor BOFAS"]
["grondsanering : off-site reiniging",null,"standaard",null,null,null,null,null,null,null,null,"grondsanering : off-site reiniging",null,"standaard",null,"bodemlucht : onttrokken bodemlucht (Nm³)"]
["grondwatersanering : grondwateronttrekking",null,"standaard",null,null,null,null,null,null,null,null,"grondsanering : off-site storten",null,"complex",null,"bodemlucht : verwerkt - geloosde lucht (Nm³)"]
["in-situ sanering bodemluchtextractie",null,"standaard",null,null,null,null,null,null,null,null,"grondsanering : on-site bergen",null,"on-site",null,"geïnjecteerde (pers)lucht (Nm³)"]
["grondsanering : off-site reiniging",null,"standaard",null,null,null,null,null,null,null,null,"grondsanering : ontgraving - on-site reiniging - Biologisch",null,"uitzonderlijke",null,"grondwater : onttrokken grondwater (m³)"]
[null,null,null,null,null,null,null,null,null,null,null,"grondwatersanering : grondwateronttrekking",null,null,null,"grondwater : verwerkt - infiltratie (m³)"]
[null,null,null,null,null,null,null,null,null,null,null,"in-situ sanering : biosparging",null,null,null,"grondwater : verwerkt - lozing in oppervlaktewater (m³)"]
["detail planningstabel in bijlage?",null,null,null,null,null,null,null,null,null,null,"in-situ sanering : bioventing",null,null,null,"grondwater : verwerkt - lozing in riolering (m³)"]
[null,null,null,null,null,null,null,null,null,null,null,"in-situ sanering : chemische oxidatie - ander",null,null,null,"uitgegraven bodem : ontgraven bodem (ton)"]
["CONFORMITEIT VAN HET BESTEK MET HET BODEMSANERINGSPROJECT EN HET CONFORMITEITSATTEST",null,null,null,null,null,null,null,null,null,null,"in-situ sanering : grondwaterrecirculatiecellen",null,null,null,"uitgegraven bodem : verwerkt - afgevoerd naar stortplaats (ton)"]
["Beantwoordt het lastenboek van de bodemsaneringswerken naar overeenstemming",null,null,null,null,null,null,null,null,null,null,"in-situ sanering : persluchtinjectie",null,null,null,"uitgegraven bodem : verwerkt - afgevoerd naar TOP (ton)"]
["en volledigheid aan het bodemsaneringsproject en het bijhorend conformiteitsattest ?",null,null,null,null,null,null,null,null,null,null,"in-situ sanering : reactief scherm",null,null,null,"uitgegraven bodem : verwerkt - hergebruik ter plaatse (ton)"]
["Omvat het lastenboek activiteiten die niet via het bodemsaneringsproject",null,null,null,null,null,null,null,null,null,null,"in-situ sanering : bodemluchtextractie",null,null,null,"uitgegraven bodem : verwerkt - off-site - biologisch (ton)"]
["en het bijhorend conformiteitsattest vergund zijn?",null,null,null,null,null,null,null,null,null,null,"in-situ sanering : drijflaag verwijdering door sorptie of skimmen",null,null,null,"uitgegraven bodem : verwerkt -  off-site - fysico-chemisch (ton)"]
["De aspecten waarvoor het lastenboek afwijkt van het bodemsaneringsproject of het bijhorend",null,null,null,null,null,null,null,null,null,null,"in-situ sanering : gestimuleerde natuurlijke attenuatie - andere",null,null,null,"uitgegraven bodem : verwerkt - off-site - fysico-chemisch (ton)"]
["conformiteitsattest worden beschreven in de bijlage ",null,null,null,null,null,null,null,null,null,null,"in-situ sanering : multifase-extractie",null,null,null,"uitgegraven bodem : verwerkt - on-site berging (ton)"]
[null,null,null,null,null,null,null,null,null,null,null,"in-situ sanering : natuurlijke attenuatie",null,null,null,"verbruikt actief kool (kg)"]
["VERWERKING VRIJGEKOMEN MATERIALEN",null,null,null,null,null,null,null,null,null,null,"isolatie : civieltechnisch",null,null,null,"verbruikt injectieproduct (kg of L)"]
["omschrijving",null,null,"geplande hoeveelheid",null,null,null,null,null,null,null,"isolatie : geohydrologisch",null,null,null,"verwerkt puur product (kg)"]
["verwijderde opslagtanks",null,null,null,null,null,null,null,null,null,null,"monitoring (enkel monitoring)",null,null,null,"verwijderde opslagtanks"]
["uitgegraven bodem: verwerkt - off-site - biologisch (ton)"]
["grondwater: onttrokken grondwater (m³)"]
["grondwater: verwerkt - lozing in oppervlaktewater (m³)"]
["bodemlucht: onttrokken bodemlucht (Nm³)"]
["bodemlucht: verwerkt - geloosde lucht (Nm³)"]
["verbruikt actief kool (kg)"]
[]
[]
[]
[]
[]
["OVERZICHT VAN DE TERUGSANEERWAARDEN / SANERINGSDOELSTELLINGEN\nHet bodemsaneringsproject voorziet in een maximale vuilvrachtverwijdering voor de vastgestelde verontreiniging in het vaste deel van de aarde en in het grondwater in combinate met risico-gebaseerde terugsaneerwaarden. De definitieve terugsaneerwaarden dienen te worden vastgelegd in overleg met OVAM en dit in functie van de resultaten van de uitgevoerde werken en van de verrichte analyses. "]
["medium","eenheid","parameter","initiële max. waarde",null,"geplande waarde"]
["vaste deel van de aarde","mg/kg ds","Minerale olie"]
["vaste deel van de aarde","mg/kg ds","benzeen"]
["vaste deel van de aarde","mg/kg ds","tolueen"]
["vaste deel van de aarde","mg/kg ds","ethylbenzeen"]
["vaste deel van de aarde","mg/kg ds","xylenen"]
[]
["grondwater","µg/l","Minerale olie"]
["grondwater","µg/l","benzeen"]
["grondwater","µg/l","tolueen"]
["grondwater","µg/l","ethylbenzeen"]
["grondwater","µg/l","xylenen"]
["grondwater","µg/l","MTBE"]
[]
[]
["OVERZICHT VAN DE EMISSIENORMEN (inclusief lozingspunt)"]
["Lozingsnorm:",null,"Emissienormen lucht:"]
["Minerale olie: 500 µg/l;",null,"Benzeen: 5 mg/Nm³ bij >= 25 g/uur"]
["BTEX-totaal: 20 µg/l;",null,"Ethylbenzeen: 100 mg/Nm³ bij >= 2 kg/uur"]
["BTEX-individueel: 10 µg/l;",null,"Tolueen: 100 mg/Nm³ bij >= 2 kg/uur"]
["MTBE: 100 µg/l.",null,"Xyleen: 100 mg/Nm³ bij >= 2kg/uur"]
[]
["GOEDKEURING KWALITEITSPLAN OPDRACHTGEVER"]
["Datum van opladen van het kwaliteitsplan door de bodemsaneringsdeskundige :"]
["Datum: "]
["Naam:",{"$f":"IF(OG_naamcontact<>\"\",OG_naamcontact&\", \"&OG_naam,\"\")","v":""}]
["Handtekening:"]
[]
["Privacy Policy: BOFAS verbindt er zich toe de persoonsgegevens die ontvangen worden in het kader van de aanvraag te verwerken in overeenstemming met de toepasselijke wetgeving op het gebied van verwerking van persoonsgegevens en in het bijzonder met de Algemene Verordening Gegevensbescherming (Vo 2016/679), hierna ‘AVG’, en elkaar waar vereist bijstand en ondersteuning te verlenen teneinde hun verplichtingen onder de AVG te kunnen nakomen. Begrippen die niet gedefinieerd zijn in deze bepaling hebben de betekenis die eraan werd gegeven in de AVG. Meer informatie betreffende de Privacy Policy is terug te vinden op www.bofas.be."]

{"sheet":"BSW9 Planning","index":4,"n_rows":26,"n_cols":5,"rows_kept":26,"cut":false,"hidden":false,"merged":[[2,1,2,4],[3,1,3,4],[4,1,4,4],[1,1,1,4]]}
[]
[null,"DETAILPLANNING BODEMSANERINGSWERKEN"]
[null,{"$f":"CONCATENATE(\"OPDRACHTGEVER: \",'BBO en BSW5.PF3 Contact'!$Y$6,\"                 Dossiernr: \",'BBO en BSW5.PF3 Contact'!$Y$1)","v":"OPDRACHTGEVER: BOFAS vzw                 Dossiernr: "}]
[null,{"$f":"+'BBO en BSW5.PF3 Contact'!$Y$2","v":""}]
[null,{"$f":"CONCATENATE('BBO en BSW5.PF3 Contact'!$AA$1,\" te \",'BBO en BSW5.PF3 Contact'!$AA$2,\" \")","v":" te  "}]
[null,"Omschrijving (indicatief en niet-bindend)","Duurtijd\n (weken)","Start ","Einde"]
[null,"Startvergadering.",0,"2020-01-01",{"$f":"+D7+C7*7","v":"2020-01-01"}]
[null,"Civiele technieken"]
[null,"- werfinrichting en afbraakwerken",1,{"$f":"+E7+14","v":"2020-01-15"},{"$f":"+D9+C9*7","v":"2020-01-22"}]
[null,"- grond- en bemalingswerken",2,{"$f":"+E9","v":"2020-01-22"},{"$f":"+D10+C10*7","v":"2020-02-05"}]
[null,"- aanbrengen ondergrondse in-situ infrastructuur",1,{"$f":"+E10","v":"2020-02-05"},"2020-02-12"]
[null,"- herstel wegenis",1,{"$f":"+E11","v":"2020-02-12"},"2020-02-19"]
[]
[null,"In-situ technieken"]
[null,"- grondwaterzuivering bij bemaling grondwerken ",{"$f":"+C10","v":2},{"$f":"+D10","v":"2020-01-22"},"2020-02-05"]
[null,"- plaatsen bovengrondse in-situ infrastructuur",1,{"$f":"+E12","v":"2020-02-19"},"2020-02-26"]
[null,"- bodemluchtextractie",78,{"$f":"+E16","v":"2020-02-26"},"2021-08-25"]
[]
[null,"Grondwatermonitoring",104,{"$f":"+E17","v":"2021-08-25"},{"$f":"+D19+C19*7","v":"2023-08-23"}]
[]
[null,"Opmerkingen : "]
[null,"- planning op te maken en toe te voegen bij kwaliteitsplan door EBSD in de fase van opmaak van bestek"]
[null,"- detailplanning door aannemer op te maken voor de start van der werken mbv zijn planningsysteem "]
[]
[null,"om rijen toe te voegen: klik op 'insert' --> 'rows'"]
[null,"om rijen te verwijderen: klik met de rechtermuisknop op de desbetreffende rij --> 'delete' --> 'entire row'"]

{"sheet":"BSW6.PF9 Noodplan","index":5,"n_rows":31,"n_cols":6,"rows_kept":31,"cut":false,"hidden":false,"merged":[[1,1,1,3],[9,1,9,5],[10,1,10,5],[27,1,27,5],[24,2,24,3],[13,4,18,4],[6,1,6,5],[8,1,8,5],[11,4,11,5],[11,1,11,3],[12,5,18,5],[12,2,12,3],[13,2,13,3],[14,2,14,3],[15,2,15,3],[16,2,16,3],[17,2,17,3],[18,2,18,3],[29,1,29,5],[20,3,20,4],[21,3,21,4],[22,3,22,4],[20,1,20,2],[21,1,21,2],[22,1,22,2],[23,1,23,2],[25,2,25,3],[26,1,26,5],[28,1,28,5]]}
[]
[null,"Opdrachtgever:",null,null,{"$f":"+'BBO en BSW5.PF3 Contact'!$Y$6","v":"BOFAS vzw"}]
[null,null,null,null,{"$f":"+'BBO en BSW5.PF3 Contact'!$AA$6","v":"Av. Jules Bordetlaan 166 b1"}]
[null,null,null,null,{"$f":"+\"B-\"&'BBO en BSW5.PF3 Contact'!$AB$6","v":"B-1140 Evere"}]
[null,null,null,null,{"$f":"+\"Tel: \"&'BBO en BSW5.PF3 Contact'!$AD$6","v":{"$error":"#N/A"}},{"$f":"+\"Fax: \"&'BBO en BSW5.PF3 Contact'!$AE$6","v":"Fax: 02 788 29 99"}]
[]
[null,"Achilles Projectfiche 9: NOODPLAN"]
[]
[null,"ADRES VAN DE WERF:"]
[null,{"$f":"CONCATENATE('BBO en BSW5.PF3 Contact'!$Y$2,)","v":""}]
[null,{"$f":"CONCATENATE('BBO en BSW5.PF3 Contact'!$AA$1,\" te \",'BBO en BSW5.PF3 Contact'!$AA$2,\" \")","v":" te  "}]
[null,"EHBO helper op werf: "]
[null,null,"Medische Spoeddienst",null,112,"Bij ernstig letsel vermeld:\n   ●  referentiepunt en straatnaam\n   ●  aard van de verwonding\n   ●  of het slachtoffer ademt\n   ●  of het slachtoffer hartslag heeft\n   ●  naam firma en eigen naam\n   ●  houd de omgeving vrij\n   ●  verwittig uw bedrijf\nBij beperkt letsel verwittig uw bedrijf en wacht\nBij overschrijding van de TLV:\n   ●  verwijder slachtoffer onmiddellijk uit\n       gevarenzone\n   ●  raadpleeg arbeidsgeneesheer"]
[]
[]
[]
[]
[]
[]
[null,"Huisartsen",null,"Adres",null,"Telefoonnummer"]
[]
[]
[]
[]
[null,null,"Brandweer",null,112,"Bij brand/explosie/wegvloeien vloeistoffen in het milieu\n  ●  leg de werken stil en verwittig uw\n      omgeving\n  ● bel de brandweer\n     - geef referentiepunt en straatnaam\n     - vermeld de aard en omvang van het\n        probleem\n  ●  verwittig uw bedrijf en de \n      coördinator verwezenlijking\n  ●  tracht zo mogelijk de brand te \n      blussen met de aanwezige \n      blusmiddelen\n  ●  wacht op de hulpdiensten  \n\n"]
[null,null,"Politie",null,112]
[null,"Incident meldingen door de bedrijfsverantwoordelijke:"]
[null,"- Elk ongeval/incident dient onmiddellijk gemeld te worden aan de coördinator-verwezenlijking."]
[null,"- De verplichte wettelijke meldingen aan de wetsverzekeraar, de technische inspectie en de externe dienst"]
[null,"   dienen binnen de voorgeschreven termijnen uitgevoerd te worden."]
[null,"- Invullen en bezorgen aan de opdrachtgever van de BOFAS incident verklaring. Origineel bewaren in werfmap."]

{"sheet":"BSW14 PV CT","index":6,"n_rows":91,"n_cols":9,"rows_kept":91,"cut":false,"hidden":false,"merged":[[27,2,27,9],[26,2,26,9],[23,2,23,9],[68,2,68,9],[69,2,69,9],[16,2,16,9],[12,2,12,9],[41,5,41,7],[41,3,41,4],[41,1,41,2],[41,8,41,9],[13,2,13,9],[14,2,14,9],[15,2,15,9],[29,2,29,9],[20,2,20,9],[82,2,82,9],[79,2,79,9],[80,2,80,9],[81,2,81,9],[6,1,6,3],[6,4,6,9],[11,2,11,9],[24,2,24,9],[25,2,25,9],[7,1,7,3],[7,4,7,5],[7,6,7,7],[17,2,17,9],[18,2,18,9],[19,2,19,9],[7,8,7,9],[28,2,28,9],[62,2,62,9],[61,2,61,9],[60,2,60,9],[59,2,59,9],[58,2,58,9],[57,2,57,9],[53,3,53,9],[53,1,53,2],[72,2,72,9],[71,2,71,9],[67,2,67,9],[30,2,30,9],[31,2,31,9],[32,2,32,9],[54,1,54,2],[54,3,54,9],[56,2,56,9],[50,1,50,9],[70,2,70,9],[0,1,0,9],[2,1,2,2],[2,3,2,5],[2,7,2,9],[3,1,3,2],[3,3,3,9],[4,1,4,2],[4,3,4,5],[4,7,4,9],[5,1,5,4],[5,5,5,9],[21,2,21,9],[22,2,22,9],[90,1,90,2],[90,3,90,4],[90,5,90,7],[90,8,90,9],[78,2,78,9],[76,2,76,9],[77,2,77,9],[63,2,63,9],[64,2,64,9],[65,2,65,9],[66,2,66,9],[75,2,75,9],[74,2,74,9],[73,2,73,9]]}
[null,"PROCES VERBAAL VAN VOORLOPIGE OPLEVERING CT WERKEN"]
[]
[null,"Bouwheer:",null,"BOFAS vzw",null,null,"Dossiernr:",{"$f":"'BBO en BSW5.PF3 Contact'!C1","v":0}]
[null,"Stationnaam: ",null,{"$f":"'BBO en BSW5.PF3 Contact'!C2","v":0}]
[null,"Locatie:",null,{"$f":"'BBO en BSW5.PF3 Contact'!E1","v":0},null,null,"te",{"$f":"'BBO en BSW5.PF3 Contact'!E2","v":0}]
[null,"Milieukundig begeleider:",null,null,null,{"$f":"'BBO en BSW5.PF3 Contact'!Y11","v":""}]
[null,"Hoofdaannemer:",null,null,{"$f":"'BBO en BSW5.PF3 Contact'!Y12","v":0}]
[null,"Start der werken:",null,null,null,null,"Einde der werken:"]
[]
[null,"Volgende gebreken zijn vastgesteld ten aanzien van bovenvermeld project :"]
[]
[]
[]
[]
[]
[]
[]
[]
[]
[]
[]
[]
[]
[]
[]
[]
[]
[]
[]
[]
[]
[]
[]
[]
[null,"Deze gebreken dienen hersteld te worden voor _________________________"]
[]
[null,"Uitgezonderd bovenvermeldde gebreken zijn de werken uitgevoerd conform de"]
[null,"projectdocumenten."]
[]
[null,"Opgemaakt op : _______________________"]
[]
[null,"De opdrachtgever",null,"De hoofdaannemer",null,"Milieukundig begeleider",null,null,"Eigenaar/Aanvrager"]
[]
[]
[]
[]
[]
[]
[]
[]
[null,"PROCES VERBAAL VAN VOORLOPIGE OPLEVERING (vervolg)"]
[]
[]
[null,"Dossiernr:",null,{"$f":"+H3","v":0}]
[null,"Stationnaam:",null,{"$f":"+D4","v":0}]
[]
[]
[]
[]
[]
[]
[]
[]
[]
[]
[]
[]
[]
[]
[]
[]
[]
[]
[]
[]
[]
[]
[]
[]
[]
[]
[]
[]
[null,"Deze gebreken dienen hersteld te worden voor _________________________"]
[]
[null,"Uitgezonderd bovenvermeldde gebreken zijn de werken uitgevoerd conform de"]
[null,"projectdocumenten."]
[]
[null,"Opgemaakt op : _______________________"]
[]
[null,"De opdrachtgever",null,"De hoofdaannemer",null,"Milieukundig begeleider",null,null,"Eigenaar/Aanvrager"]

{"sheet":"BSW14 PV IS","index":7,"n_rows":89,"n_cols":9,"rows_kept":89,"cut":false,"hidden":false,"merged":[[69,2,69,9],[64,2,64,9],[65,2,65,9],[66,2,66,9],[67,2,67,9],[68,2,68,9],[79,2,79,9],[80,2,80,9],[70,2,70,9],[74,2,74,9],[75,2,75,9],[78,2,78,9],[76,2,76,9],[77,2,77,9],[71,2,71,9],[72,2,72,9],[73,2,73,9],[63,2,63,9],[55,2,55,9],[56,2,56,9],[57,2,57,9],[58,2,58,9],[59,2,59,9],[60,2,60,9],[61,2,61,9],[62,2,62,9],[52,1,52,2],[52,3,52,9],[54,2,54,9],[7,1,7,3],[6,1,6,3],[39,1,39,2],[39,3,39,4],[30,2,30,9],[39,5,39,7],[39,8,39,9],[29,2,29,9],[11,2,11,9],[12,2,12,9],[13,2,13,9],[14,2,14,9],[15,2,15,9],[16,2,16,9],[17,2,17,9],[18,2,18,9],[19,2,19,9],[27,2,27,9],[28,2,28,9],[5,1,5,4],[0,1,0,9],[48,1,48,9],[2,1,2,2],[2,3,2,5],[2,7,2,9],[3,1,3,2],[3,3,3,9],[4,1,4,2],[4,3,4,5],[4,7,4,9],[7,6,7,7],[7,8,7,9],[5,5,5,9],[6,4,6,9],[7,4,7,5],[88,1,88,2],[88,3,88,4],[88,5,88,7],[88,8,88,9],[20,2,20,9],[21,2,21,9],[22,2,22,9],[23,2,23,9],[24,2,24,9],[25,2,25,9],[26,2,26,9],[51,1,51,2],[51,3,51,9]]}
[null,"PROCES VERBAAL VAN VOORLOPIGE OPLEVERING IS WERKEN"]
[]
[null,"Bouwheer:",null,"BOFAS vzw",null,null,"Dossiernr:",{"$f":"'BBO en BSW5.PF3 Contact'!C1","v":0}]
[null,"Stationnaam: ",null,{"$f":"'BBO en BSW5.PF3 Contact'!C2","v":0}]
[null,"Locatie:",null,{"$f":"'BBO en BSW5.PF3 Contact'!E1","v":0},null,null,"te",{"$f":"'BBO en BSW5.PF3 Contact'!E2","v":0}]
[null,"Milieukundig begeleider:",null,null,null,{"$f":"'BBO en BSW5.PF3 Contact'!Y11","v":""}]
[null,"Hoofdaannemer:",null,null,{"$f":"'BBO en BSW5.PF3 Contact'!Y12","v":0}]
[null,"Start der werken:",null,null,null,null,"Einde der werken:"]
[]
[null,"Volgende gebreken zijn vastgesteld ten aanzien van bovenvermeld project :"]
[]
[]
[]
[]
[]
[]
[]
[]
[]
[]
[]
[]
[]
[]
[]
[]
[]
[]
[]
[]
[]
[]
[null,"Deze gebreken dienen hersteld te worden voor _________________________"]
[]
[null,"Uitgezonderd bovenvermeldde gebreken zijn de werken uitgevoerd conform de"]
[null,"projectdocumenten."]
[]
[null,"Opgemaakt op : _______________________"]
[]
[null,"De opdrachtgever",null,"De hoofdaannemer",null,"Milieukundig begeleider",null,null,"Eigenaar/Aanvrager"]
[]
[]
[]
[]
[]
[]
[]
[]
[null,"PROCES VERBAAL VAN VOORLOPIGE OPLEVERING (vervolg)"]
[]
[]
[null,"Dossiernr:",null,{"$f":"+H3","v":0}]
[null,"Stationnaam:",null,{"$f":"+D4","v":0}]
[]
[]
[]
[]
[]
[]
[]
[]
[]
[]
[]
[]
[]
[]
[]
[]
[]
[]
[]
[]
[]
[]
[]
[]
[]
[]
[]
[]
[null,"Deze gebreken dienen hersteld te worden voor _________________________"]
[]
[null,"Uitgezonderd bovenvermeldde gebreken zijn de werken uitgevoerd conform de"]
[null,"projectdocumenten."]
[]
[null,"Opgemaakt op : _______________________"]
[]
[null,"De opdrachtgever",null,"De hoofdaannemer",null,"Milieukundig begeleider",null,null,"Eigenaar/Aanvrager"]

{"sheet":"BSW II.9 Veiligheid","index":8,"n_rows":14,"n_cols":9,"rows_kept":14,"cut":false,"hidden":true,"merged":[[12,6,13,6],[12,7,13,7],[12,1,13,1],[12,2,13,2],[12,3,13,3],[12,4,13,4],[12,5,13,5],[8,5,8,7],[10,5,10,7],[4,5,4,7],[5,5,5,7],[6,5,6,7],[7,5,7,7],[9,5,9,7]]}
[null,"Werf : ",{"$f":"CONCATENATE('BBO en BSW5.PF3 Contact'!$Y$2,\", \",'BBO en BSW5.PF3 Contact'!$AA$1,\" te \",'BBO en BSW5.PF3 Contact'!$AA$2,\" \")","v":",  te  "}]
[]
[null,"Verdeellijst veiligheidsrondgang nr :",null," dd.     /     /2020"]
[]
[null,null,"Activiteit","Naam firma","Contactpersoon","e-mail"]
[null,null,"Hoofdaannemer CT werken",{"$f":"+'BBO en BSW5.PF3 Contact'!$Y$12","v":0},{"$f":"+'BBO en BSW5.PF3 Contact'!$Z$12","v":0},{"$f":"+'BBO en BSW5.PF3 Contact'!$AF$12","v":0}]
[null,null,"Opdrachtgever",{"$f":"+'BBO en BSW5.PF3 Contact'!$Y$6","v":"BOFAS vzw"},{"$f":"+'BBO en BSW5.PF3 Contact'!$Z$6","v":""},{"$f":"+'BBO en BSW5.PF3 Contact'!$AF$6","v":{"$error":"#N/A"}}]
[null,null,"Milieukundige begeleiding",{"$f":"+'BBO en BSW5.PF3 Contact'!$Y$11","v":""},{"$f":"+'BBO en BSW5.PF3 Contact'!$Z$11","v":0},{"$f":"+'BBO en BSW5.PF3 Contact'!$AF$11","v":0}]
[]
[null,null,"Technische directie",{"$f":"+'BBO en BSW5.PF3 Contact'!$Y$7","v":"BOFAS vzw"},{"$f":"+'BBO en BSW5.PF3 Contact'!$Z$7","v":"Erik Goolaerts"},{"$f":"+'BBO en BSW5.PF3 Contact'!$AF$7","v":"erik.goolaerts@bofas.be"}]
[null,null,"Veiligheidscoördinator verw.",{"$f":"+'BBO en BSW5.PF3 Contact'!$Y$15","v":"BOFAS vzw"},{"$f":"+'BBO en BSW5.PF3 Contact'!$Z$15","v":""},{"$f":"+'BBO en BSW5.PF3 Contact'!$AF$15","v":{"$error":"#N/A"}}]
[]
["Nr.","Datum vaststelling","Inbreuken &             Vaststellingen","Voorgestelde              maatregelen","Verantwoordelijke            aannemer","Termijn oplossing","Status","Datum\n opgelost","Opmerkingen"]
[null,null,null,null,null,"Termijn oplossing"]

{"sheet":"histlog","index":9,"n_rows":17,"n_cols":5,"rows_kept":17,"cut":false,"hidden":true,"merged":[]}
["versie","naam ","goedgekeurd ","datum ","opmerking"]
["3.00","LV","EG","2020-02-18","versie 3 BOFAS 3"]
["2.02","KVD","GM","2020-02-18","bijsturing eerste Batch perceel 1"]
["2.00","JDW","EG","2019-12-06","nazicht lay-out en referenties BOFAS 3"]
["1.02","KVD","JDW","2019-12-04","tabblad BSWO.PF1 en 2 - T9202 verwijderd en werkvergunning in werfmap ipv per e-mail, toevoegen plaats voor handtekening bij PV (BSW 14)"]
["1.00","EG","EG","2019-09-25","versie 1 BOFAS 3"]
[0.13,"LV",null,"2019-09-18","referentie PID opnieuw aangepast"]
["0.12","LV",null,"2019-09-17","lay-out bofas 3 en nazicht referenties"]
[null,null,null,null,"T5225 wordt T1240"]
[11,"KVD","JDW","2019-09-09","aanpassingen aan lijst contactpersonen en kwaliteitsplan conform OVAM"]
[7,null,null,"2014-04-22"]
[6]
[5]
[4]
[3]
[2]
[1,null,null,2005]